Cogmind - Beta 15 @@@ ROGUE MODE // 2025.05.12 @ 23:25:14 Player: Windjigo Result: Destroyed by X-57 Shotgunner with High-powered Shotgun Performance ------------- Evolutions (2) 1000 Regions Visited (4) 800 Robots Destroyed (30) 150 Value Destroyed (705) 705 Prototype IDs (0) 0 Alien Tech Used (0) 0 Bonus (68) 68 TOTAL SCORE: 2723 Bonus ------- Follower Combat Kills 83 Friendly Fire -15 Cogmind --------- Core Integrity 0/550 Matter 240/300 Energy 100/100 System Corruption 0% Temperature Cool (0) Movement Core (350) Ox6 Location -8/Materials Parts ------- > --- POWER (1) -------- (None) > --- PROPULSION (3) --- (None) > --- UTILITY (4) ------ Large Storage Unit > --- WEAPON (3) ------- (None) > --- INVENTORY (15) --- Improved Heat Sink Medium Matter Pod (100) Compact Matter Pod (0) Light Armor Plating Beam Rifle Particle Gun Heavy Assault Rifle Signal Generator Peak State ------------ > --- POWER ------------ Nuclear Core > --- PROPULSION ------- Light Treads Light Treads Aluminum Leg > --- UTILITY ---------- Large Storage Unit Improved Terrain Scanner Terrain Scan Processor Seismic Detector > --- WEAPON ----------- Beam Rifle Particle Gun Heavy Assault Rifle > --- INVENTORY -------- Ion Engine Improved Heat Sink Medium Matter Pod Compact Matter Pod Light Armor Plating Mini Grenade Launcher Mini Grenade Launcher Mini Grenade Launcher Signal Generator [Rating: 21] Favorites ----------- Power Ion Engine Engine Ion Engine Power Core Nuclear Core Propulsion Aluminum Leg Treads Light Treads Leg Aluminum Leg Hover Unit Hover Unit Utility Targeting Computer Device Seismic Detector Storage Large Storage Unit Processor Targeting Computer Weapon Light Assault Rifle Energy Gun Beam Rifle Ballistic Gun Light Assault Rifle Launcher Mini Grenade Launcher Build | -11 -10 -10 -9 -8 ------- Run | Yrd Mat Min Mat Mat Slots Evolved 4 | . . . 2 2 Power . | . . . . . Propulsion 1 | . . . 1 . Utility 2 | . . . 1 1 Weapon 1 | . . . . 1 Parts Attached 44 | 8 10 9 13 4 Power 7 | 2 1 1 2 1 Engine 6 | 2 1 1 2 . Core 1 | . . . . 1 Reactor . | . . . . . Propulsion 16 | 2 6 2 6 . Treads 2 | . . . 2 . Leg 12 | 2 4 2 4 . Wheel . | . . . . . Hover 2 | . 2 . . . Flight . | . . . . . Utility 9 | 2 2 3 2 . Device 4 | 1 . 2 1 . Storage 2 | 1 . . 1 . Processor 3 | . 2 1 . . Hackware . | . . . . . Protection . | . . . . . Artifact . | . . . . . Weapon 12 | 2 1 3 3 3 Energy Gun 4 | . 1 1 2 . Energy Cannon . | . . . . . Ballistic Gun 5 | 2 . 2 1 . Ballistic Cannon . | . . . . . Launcher 3 | . . . . 3 Special Weapon . | . . . . . Impact Weapon . | . . . . . Slashing Weapon . | . . . . . Piercing Weapon . | . . . . . Special Melee Weapon . | . . . . . Unidentified Prototypes . | . . . . . Parts Lost 18 | . 3 . 5 10 Power 3 | . 1 . 1 1 Propulsion 7 | . 1 . 3 3 Utility 3 | . . . . 3 Weapon 5 | . 1 . 1 3 Highest Loss Streak 10 | . 2 . 3 10 To Critical Strikes . | . . . . . Average Backups 3 | . 3 3 3 5 Power . | . . . . . Propulsion . | . 1 1 . . Utility 2 | . 1 2 2 3 Weapon . | . 1 . . 1 Tool/Special . | . . . . . Unused Backups 6 | 1 1 . . 4 Power . | . . . . . Propulsion . | . . . . . Utility 4 | . . . . 4 Weapon 2 | 1 1 . . . Tool/Special . | . . . . . Average Slot Usage (%) 94 | . 98 100 89 80 Engine 11 | . 13 14 10 4 Treads 1 | . . . 2 13 Leg 24 | . 24 28 24 6 Hover 1 | . 3 . . . Device 10 | . 5 4 19 15 Storage 1 | . 1 . . 9 Processor 17 | . 21 23 11 6 Energy Gun 8 | . 2 6 16 8 Ballistic Gun 15 | . 25 21 3 4 Peak Build Rating 21 | 7 8 12 19 21 Average Rating 10 | 4 7 8 14 15 On Entrance 8 | . 7 8 12 13 Naked Turns . | . . . . . Heaviest Build 36 | 10 10 10 32 36 Greatest Support 40 | 20 20 20 40 40 Greatest Overweight (x) 9 | . 1 . 1 9 Average Overweight (x) . | . . . . . Largest Inventory Capacity 15 | 5 5 5 15 15 Average Capacity 5 | 5 5 5 5 15 Most Carried 9 | 2 5 5 6 9 Average Carried 4 | . 3 3 4 6 Final Capacity 15 | 5 5 5 15 15 Final Carried 8 | 1 3 5 6 8 Class Distribution -------------------- 80% | Scavenger-Mutant 15% | Mutant 4% | Scavenger-Skirmisher Dominant Class ---------------- Scavenger-Mutant | -10/Materials Scavenger-Mutant | -10/Mines Scavenger-Mutant | -9/Materials Scavenger-Skirmisher | -8/Materials Resources | -11 -10 -10 -9 -8 ----------- Run | Yrd Mat Min Mat Mat Matter Collected 945 | 305 299 205 136 . Remotely . | . . . . . Salvage Created 922 | 64 272 171 415 . Parts 76 | 5 30 8 33 . Haulers Intercepted . | . . . . . Recyclers Shooed 2 | . . . 2 . Parts Field Recycled . | . . . . . Retrieved Matter . | . . . . . Parts Self-Destructed . | . . . . . Prevented . | . . . . . Kills | -11 -10 -10 -9 -8 ------- Run | Yrd Mat Min Mat Mat Combat Hostiles Destroyed 27 | 1 8 9 9 . Guns 27 | 1 8 9 9 . Classes Destroyed 8 | 2 2 1 3 . Worker 1 | 1 . . . . Tunneler 2 | . . . 2 . Watcher 4 | . 2 . 2 . Swarmer 9 | . 3 3 3 . Grunt 11 | 1 5 2 3 . Brawler 1 | . . . 1 . Sentry 2 | . . . 2 . Assembled 4 | . . 4 . . Best Kill Streak 6 | 1 3 3 6 . Combat Bots Only 5 | 1 3 3 5 . Max Kills in Single Turn 2 | 1 2 1 2 . Gunslinging 1 | . 1 . . . Exploded . | . . . . . Melee . | . . . . . Uniques/NPCs Destroyed . | . . . . . Combat | -11 -10 -10 -9 -8 -------- Run | Yrd Mat Min Mat Mat Hostile Shots Fired 285 | 9 62 57 80 77 Missed 99 | 3 20 19 31 26 Hits 186 | 6 42 38 49 51 Projectile 186 | 6 42 38 49 51 Critical Strikes 4 | . . 2 1 1 Damage Taken 2790 | 63 454 412 677 1184 Core 905 | 31 45 146 131 552 Absorbed by Shields . | . . . . . Core Remaining (%) 55 | 87 . 11 67 . Volleys Fired 110 | 7 39 32 30 2 Largest 2 | 2 2 2 2 2 Hottest 131 | 40 60 85 131 60 Shots Fired 212 | 14 73 62 59 4 Gun 208 | 14 73 62 59 . Cannon . | . . . . . Launcher 4 | . . . . 4 Special . | . . . . . Kinetic 126 | 14 68 43 1 . Thermal 82 | . 5 19 58 . Explosive 4 | . . . . 4 Electromagnetic . | . . . . . Robot Hit Streak 9 | 2 6 6 9 . Robot Miss Streak 4 | 4 4 3 4 . Penetration Max . | . . . . . Secondary Targets 6 | . 3 2 1 . Max Gunslinging Chain 1 | . 1 1 1 . Shots Hit Robots 116 | 6 39 37 34 . Core Hits 56 | 3 18 17 18 . Critical Kills . | . . . . . Critical Parts Destroyed . | . . . . . Critical Strikes 4 | . . . 4 . Burn 4 | . . . 4 . Melee Attacks . | . . . . . Impact . | . . . . . Slashing . | . . . . . Piercing . | . . . . . Sneak Attacks . | . . . . . Combat Hostiles . | . . . . . Follow-up Attacks . | . . . . . Damage Inflicted 1513 | 62 409 364 643 35 Guns 1478 | 62 409 364 643 . Cannons . | . . . . . Explosions 35 | . . . . 35 Melee . | . . . . . Ramming . | . . . . . Kinetic 641 | 62 397 182 . . Thermal 837 | . 12 182 643 . Explosive 35 | . . . . 35 Electromagnetic . | . . . . . Impact . | . . . . . Slashing . | . . . . . Piercing . | . . . . . Highest Corruption . | . . . . . Average Corruption . | . . . . . Corruption Purged . | . . . . . Corruption Blocked . | . . . . . Overload Shots . | . . . . . Overflow Damage . | . . . . . Projectiles . | . . . . . Explosions . | . . . . . Melee . | . . . . . Knockbacks . | . . . . . Impact . | . . . . . Kinetic . | . . . . . Secondary . | . . . . . Self-Inflicted Damage 33 | . . . . 33 Shots 1 | . . . . 1 Rammed . | . . . . . Targets Rammed . | . . . . . Kicked . | . . . . . Crushed . | . . . . . Highest Temperature 414 | 6 32 116 414 . Average Temperature 75 | 6 8 33 112 . Received Heat Transfer 645 | 36 210 141 258 . Effects 1 | . . . 1 . Shutdowns 1 | . . . 1 . Siege Activations . | . . . . . Martial Activations . | . . . . . Shielding Activations . | . . . . . Robots Disrupted . | . . . . . Combat Hostiles . | . . . . . Robots Corrupted . | . . . . . Combat Hostiles . | . . . . . Parts Fried . | . . . . . Impact Corruptions . | . . . . . Robots Melted . | . . . . . Combat Hostiles . | . . . . . Parts Melted 5 | . . . 5 . Heat Transferred 2222 | . 25 421 1776 . Parts Sabotaged . | . . . . . Parts Stolen . | . . . . . Parts Stripped . | . . . . . Power Chain Reactions . | . . . . . Alert | -11 -10 -10 -9 -8 ------- Run | Yrd Mat Min Mat Mat Maximum Alert Level . | . . . . . Low Security (%) 100 | 100 100 100 100 100 Level 1 . | . . . . . Level 2 . | . . . . . Level 3 . | . . . . . Level 4 . | . . . . . Level 5 . | . . . . . High Security . | . . . . . Max Security . | . . . . . Peak Influence 156 | 20 112 100 156 17 Initial 40 | . . 40 . 3 Average 32 | 2 18 20 68 2 Influence Increases 902 | 25 324 135 376 42 Destroy 0b10 Robot/C 520 | 20 160 100 240 . Destroy 0b10 Robot/NC 40 | 5 10 . 25 . Destroy Leader 128 | . 34 20 74 . Allied During Kill 7 | . . . 7 . Disable Machine 15 | . . . 15 . Destroy Structure 27 | . . . . 27 Lose Combat Pursuer 165 | . 120 15 15 15 Influence Decreases 902 | 25 220 239 368 50 Entered New Map 69 | . . 64 . 5 Time Decay 716 | 25 200 175 298 18 Lost Part 97 | . 20 . 50 27 Lost Ally 20 | . . . 20 . Squads Dispatched 8 | . 4 1 1 2 Investigation 3 | . 3 . . . Extermination . | . . . . . Reinforcement 4 | . 1 . 1 2 Assault 1 | . . 1 . . Garrison . | . . . . . Intercept . | . . . . . Searches Triggered . | . . . . . Construction Impeded . | . . . . . Haulers Reinforced . | . . . . . Active Scanning Responses . | . . . . . Cargo Convoy Interrupts . | . . . . . Stealth | -11 -10 -10 -9 -8 --------- Run | Yrd Mat Min Mat Mat Distress Signals 3 | . . . 1 2 Communications Jammed . | . . . . . Distress Signals . | . . . . . Times Spotted 53 | 1 20 11 14 7 Peak Tracking Total 8 | 1 8 3 4 5 Tactical Retreats 5 | . 2 1 1 1 Traps | -11 -10 -10 -9 -8 ------- Run | Yrd Mat Min Mat Mat Traps Triggered 2 | . 2 . . . Indirectly . | . . . . . Trap Hack Attempts . | . . . . . Triggered . | . . . . . Disarmed . | . . . . . Reprogrammed . | . . . . . Reused . | . . . . . Traps Extracted . | . . . . . Installed . | . . . . . Triggered . | . . . . . Machines | -11 -10 -10 -9 -8 ---------- Run | Yrd Mat Min Mat Mat Machines Disabled 1 | . . . 1 . Max in Single Turn 1 | . . . 1 . Machines Repaired . | . . . . . Machines Dismantled . | . . . . . Machines Sabotaged . | . . . . . Overloaded Fab Kills . | . . . . . Hacking | -11 -10 -10 -9 -8 --------- Run | Yrd Mat Min Mat Mat Machines Accessed 2 | . 1 . . 1 Terminals 2 | . 1 . . 1 Fabricators . | . . . . . Repair Stations . | . . . . . Recycling Units . | . . . . . Scanalyzers . | . . . . . Garrison Access . | . . . . . Total Hacks 6 | . 3 . . 3 Successful 4 | . 1 . . 3 Failed 2 | . 2 . . . Catastrophic 1 | . 1 . . . Database Lockouts . | . . . . . Manual . | . . . . . Terminals 6 | . 3 . . 3 Fabricators . | . . . . . Repair Stations . | . . . . . Recycling Units . | . . . . . Scanalyzers . | . . . . . Garrison Access . | . . . . . Terminal Hacks 4 | . 1 . . 3 Record 4 | . 1 . . 3 Fabricator Hacks . | . . . . . Repair Station Hacks . | . . . . . Recycling Unit Hacks . | . . . . . Scanalyzer . | . . . . . Garrison Access Hacks . | . . . . . Unauthorized Hacks . | . . . . . Terminals . | . . . . . Fabricators . | . . . . . Repair Stations . | . . . . . Recycling Units . | . . . . . Scanalyzers . | . . . . . Garrison Access . | . . . . . Data Cores Recovered . | . . . . . Used . | . . . . . Hacking Detections 2 | . 1 . . 1 Full Trace Events 1 | . 1 . . . Feedback Events . | . . . . . Feedback Blocked . | . . . . . Robot Schematics Acquired . | . . . . . Robots Built . | . . . . . Authchips . | . . . . . Time . | . . . . . Total Robot Build Rating . | . . . . . Part Schematics Acquired . | . . . . . Parts Built . | . . . . . Authchips . | . . . . . Time . | . . . . . Total Part Build Rating . | . . . . . Parts Repaired . | . . . . . Time . | . . . . . Parts Recycled . | . . . . . Recycled Matter . | . . . . . Retrieved Matter . | . . . . . Retrieved Components . | . . . . . Parts Scanalyzed . | . . . . . Part Schematics Acquired . | . . . . . Parts Damaged . | . . . . . Bothacking | -11 -10 -10 -9 -8 ------------ Run | Yrd Mat Min Mat Mat Used RIF Installer . | . . . . . Robots Hacked . | . . . . . Non-combat . | . . . . . Combat . | . . . . . Robot Hacks Applied . | . . . . . Relay Couplers Released . | . . . . . Fabnet Peak Effective % . | . . . . . Robots Rewired . | . . . . . Allies Hacked . | . . . . . Hacks Repelled . | . . . . . Allies | -11 -10 -10 -9 -8 -------- Run | Yrd Mat Min Mat Mat Total Allies 1 | . . 1 . . Largest Group 1 | . . . 1 . Highest-Rated Group 31 | . . . 31 . Highest-Rated Ally 31 | . . . 31 . Total Orders . | . . . . . Ally Attacks 19 | . . . 19 . Total Damage 292 | . . . 292 . Kills 4 | . . . 4 . Allies Corrupted . | . . . . . Allies Melted . | . . . . . Intel | -11 -10 -10 -9 -8 ------- Run | Yrd Mat Min Mat Mat Active Infowar (turns) 1971 | . 390 739 718 124 Optics 901 | . 390 511 . . Terrain 742 | . . 92 531 119 Seismic 974 | . . 136 714 124 Robot Analysis Total . | . . . . . Derelict Logs Recovered 1 | . . 1 . . Drone Launches . | . . . . . Drone Recoveries . | . . . . . Exploration | -11 -10 -10 -9 -8 ------------- Run | Yrd Mat Min Mat Mat Turns Passed 2324 | 120 601 739 718 146 Spaces Moved 1490 | 81 436 508 402 63 Core 25 | 22 . . . 3 Treads 122 | . . . 62 60 Legs 1254 | 59 347 508 340 . Wheels . | . . . . . Hover 89 | . 89 . . . Flight . | . . . . . Fastest Speed 50 | 50 56 120 120 160 Average Speed 122 | 100 107 120 136 178 Slowest Speed 500 | 120 120 120 190 500 Overloaded Moves . | . . . . . Propulsion Burnouts . | . . . . . Robots Hopped . | . . . . . Potential Cave-ins . | . . . . . Cave-ins Triggered . | . . . . . Exploration Rate (%) 34 | 7 39 94 22 8 Regions Visited 4 Branch Regions 1 Pre-discovered Areas 1 | . . 1 . . Known Exits Taken . | . . . . . Unknown Exits Taken 4 | 1 1 1 1 . Scrap Searched 1 | . . 1 . . Spaces Dug . | . . . . . Terrain Destroyed 39 | . . . . 39 Melee . | . . . . . Projectile . | . . . . . AOE 39 | . . . . 39 Terrain Rammed . | . . . . . Walls Destroyed . | . . . . . Machines Disabled . | . . . . . Actions | -11 -10 -10 -9 -8 --------- Run | Yrd Mat Min Mat Mat Total 1793 | 107 502 583 511 90 Wait 82 | . 2 17 50 13 Move 1486 | 80 435 507 401 63 Hop . | . . . . . Pick Up 38 | 10 9 9 5 5 Fast Attach 10 | . 2 . 8 . Attach 14 | 7 3 . 2 2 Detach . | . . . . . Swap 28 | 1 6 11 6 4 Drop 25 | 2 6 7 9 1 Fire 110 | 7 39 32 30 2 Melee . | . . . . . Ram . | . . . . . Kick . | . . . . . Crush . | . . . . . Escape Stasis . | . . . . . Rewire . | . . . . . Trap . | . . . . . Miscellaneous . | . . . . . Route ------- -11/Scrapyard -10/Materials -10/Mines (discovered 2 exits: *Mat x2) -9/Materials -8/Materials History --------- Turn | Location | Event 2 | -11/Scrapyard | Met Revision 17 75 | -11/Scrapyard | Discovered new exit (range 8) 121 | -11/Scrapyard | Entered Materials 307 | -10/Materials | Build established: Mutant 344 | -10/Materials | Discovered new exit (range 18) 722 | -10/Materials | Entered Mines 745 | -10/Mines | Core integrity fell below 50% 799 | -10/Mines | Discovered new exit (range 3) 842 | -10/Mines | Assembled infested the area 884 | -10/Mines | Learned location of Zion (-6) 914 | -10/Mines | Build established: Scavenger-Mutant 1131 | -10/Mines | Core integrity fell below 20% 1448 | -10/Mines | Discovered new exit (range 9) 1449 | -10/Mines | Met a Derelict testing a Signal Generator 1460 | -10/Mines | Found Signal Generator 1461 | -10/Mines | Entered Materials 1461 | -9/Materials | Accompanied by 1 ally 1461 | -9/Materials | Evolved 2 slots: Propulsion x1, Utility x1 1775 | -9/Materials | Lost 3 parts (1p1n1w) 1968 | -9/Materials | Discovered new exit (range 10) 2179 | -9/Materials | Entered another Materials area 2179 | -8/Materials | Evolved 2 slots: Utility x1, Weapon x1 2309 | -8/Materials | Core integrity fell below 50% 2320 | -8/Materials | Core integrity fell below 20% 2325 | -8/Materials | Destroyed by X-57 Shotgunner with High-powered Shotgun Last Messages --------------- 02303_ U-05 Engineer lays Concrete. 02305_ U-05 Engineer builds a Wall. 02305_ Nuclear Core destroyed. 02306_ U-05 Engineer lays Concrete. 02307_ U-05 Engineer builds a Wall. 02308_ Mni. Grenade Launcher destroyed. 02309_ U-05 Engineer lays Concrete. 02310_ U-05 Engineer builds a Wall. 02311_ The unstable cave ceiling collapses. 02312_ U-05 Engineer lays Concrete. 02312_ U-05 Engineer builds a Wall. 02314_ K-01 Serf collects debris. 02314_ U-05 Engineer lays Concrete. 02316_ U-05 Engineer builds a Wall. 02317_ U-05 Engineer lays Concrete. 02320_ Knocked back. 02320_ U-05 Engineer lays Concrete. 02321_ K-01 Serf collects debris. 02321_ U-05 Engineer lays Concrete. 02323_ U-05 Engineer builds a Wall. Map ----- +----------------------------------------------------+ | ????????????"??? ??? ?????? ?????????????????????? | | ??????????""????###???#??#???#???#???????????????? | | ????????+?"?" ??#?##??###????????????????????????? | | ?????????????? ##????##???###??##????????????????? | | ?????" ?#???######?#?#?#??####?#?????#???????????? | | ????? ?? ##???#?#?#??#?#?##?#??????#?????????????? | | ???????? ???#################?#??????????????????? | | ???? ? ?#?# # #?###?#??#?????????????? | | ???????????## "T" # #?#?##???#?????????????? | | ???????? ##?# """ # #??#?##????????????????? | | ??#??? ?? #?# """ + #????#? ???????????????? | | ?????? ? #?# """ # #####?? ?"?????????????? | | ??#?#? ??#### #k #?????#???? "??????????? | | ????????#??## # ##??#?# ??? ?"?????????? | | ? ?#????#???# ! # #?#??##? ? ????????????? | | ? ??#??##??############ ###?#?? ???????????????? | | ?????###?#??# # "###?#? ? ?????????????? | | ??????##?##?# """ +% ##T#######+##??????????? | | ?#??###??#?#?# """ # ?????????? | | ?????##??##??# !! """ # % ?????????? | | ??#?#???#?#### ! # % ^ ?????????? | | ??#??##????### !! """ # ##########+###?????????? | | ?#???????##??# """ #%%%# #??? ???????????? | | ?????????##### """ # % # # ??"???????????? | | ????##???????# % ; # ??????????????? | | ???????#?#?########### @ #????? ?????????? | | ??#??#??#######???##### #???? ?????????? | | ???????????#?????#???# #???????????????? | | ?#????#???#??###?###?# % ;######???"???????????? | | ???????#???##??#??##?## wx #?##?#???????????????? | | ??#????? #??##?#?##?# #ux # ##???????????????????? | | ??????? ??#?????#?# # u# ##??##???????????????? | | ??????????#?#?#??#?## #H u #???????????????????? | | ???????????#??#??##?# # u# #??#?????????????????? | | ??????? ?????#?##???###r # #????? ??????????????? | | ?????? ? #???##?#??# # ##???????????????????? | | ????????????#?????#?## #????????????????????? | | ???????? ?????? ? ##????????????????????? | | ????????????????????? ??? ??????????????????? | | ???????????? ?? ????? ??????????????????????? | | ?????????????????????###+#???????????????????????? | | ?????????????????????????????????????????????????? | | ?????????????????????????????????????????????????? | | ?????????????????????????????????????????????????? | | ?????????????????????????????????????????????????? | | ?????????????????????????????????????????????????? | | ?????????????????????????????????????????????????? | | ?????????????????????????????????????????????????? | | ?????????????????????????????????????????????????? | | ?????????????????????????????????????????????????? | +----------------------------------------------------+ Best States ------------- Heat Dissipation 35 Energy Generation 14 Energy Capacity 250 Matter Stores 300 Matter Capacity 350 Sight Range 18 Terrain Scan Range 16 Terrain Scan Density 85 Evasion (%) 55 Targeting Accuracy 5 Recoil Reduction 2 Item Schematics ----------------- None Robot Schematics ------------------ None Fabricated ------------ Nothing Repaired ---------- Nothing Alien Tech Used ----------------- None Achievements -------------- I Survived The Infestation One Hack Too Far Challenges ------------ None Game ------ Seed EncryptedCouplerAccelerator Manual? 0 Play Time 00:33:20 Cumulative 3.4 hours Start 2025.05.12 @ 22:50:19 End 2025.05.12 @ 23:25:14 Sessions 1 Manual Loads 0 Difficulty Rogue Special Mode None Game No. 2 Rogue 2 Adventurer 0 Explorer 0 Win Type - Total 0 Types 0/0/0/0/0/0/0/0/0/0 Lore% 2 Gallery% 6 Achievement% 8 Wizard Run 0 Options --------- Layout 1 ASCII 0 Keyboard 0 Movement Mouse Keybinds 0 Fullscreen 1 Font 24/Smallcaps Map View 50x35 Zoom Use 0% Tactical HUD 1 Map Filters NONE Filters NONE Steam 1 RUN: 2a7fe903-138d-45d2-8457-761d2aa9b313